[Event "Late-Titled-Tuesday-Blitz-February-20-2024"]
[Site "Chess.com"]
[Date "2024.02.20"]
[Round "2"]
[White "inagreV"]
[Black "katharinareinecke"]
[Result "0-1"]
[WhiteElo "2401"]
[BlackElo "1987"]
[TimeControl "180+1"]
[EndTime "14:17:02 PST"]
[Termination "katharinareinecke won by resignation"]

1. e4 {[%clk 0:03:00.9]} 1... c6 {[%clk 0:02:55.8]} 2. Nf3 {[%clk 0:03:00.6]}
2... d5 {[%clk 0:02:55.7]} 3. d3 {[%clk 0:03:01.3]} 3... Bg4 {[%clk 0:02:52.8]}
4. h3 {[%clk 0:03:00.3]} 4... Bxf3 {[%clk 0:02:51.7]} 5. Qxf3 {[%clk 0:03:01.2]}
5... e6 {[%clk 0:02:50.7]} 6. Nd2 {[%clk 0:03:00.5]} 6... Nf6 {[%clk 0:02:49.3]}
7. g3 {[%clk 0:02:59.7]} 7... Be7 {[%clk 0:02:44.3]} 8. Bg2 {[%clk 0:02:59.8]}
8... d4 {[%clk 0:02:40.8]} 9. O-O {[%clk 0:02:59.1]} 9... c5 {[%clk 0:02:38.5]}
10. a4 {[%clk 0:02:57.5]} 10... Nc6 {[%clk 0:02:37.8]} 11. Nc4 {[%clk
0:02:56.6]} 11... Nd7 {[%clk 0:02:21.8]} 12. Qe2 {[%clk 0:02:52.9]} 12... O-O
{[%clk 0:02:15.8]} 13. f4 {[%clk 0:02:50.1]} 13... Rb8 {[%clk 0:02:03.3]} 14.
Bd2 {[%clk 0:02:45.6]} 14... b6 {[%clk 0:01:43.2]} 15. e5 {[%clk 0:02:27.1]}
15... Na5 {[%clk 0:01:40.8]} 16. Bxa5 {[%clk 0:02:13.1]} 16... bxa5 {[%clk
0:01:36.5]} 17. b3 {[%clk 0:02:14]} 17... Qc7 {[%clk 0:01:24.3]} 18. Qd2 {[%clk
0:02:05.1]} 18... Nb6 {[%clk 0:01:16.9]} 19. Qxa5 {[%clk 0:01:59.5]} 19... Rfc8
{[%clk 0:01:12]} 20. Nxb6 {[%clk 0:01:53.1]} 20... axb6 {[%clk 0:01:10.6]} 21.
Qd2 {[%clk 0:01:52.9]} 21... Ra8 {[%clk 0:00:58.4]} 22. Rae1 {[%clk 0:01:51.8]}
22... Ra7 {[%clk 0:00:56.3]} 23. f5 {[%clk 0:01:50.7]} 23... exf5 {[%clk
0:00:52.8]} 24. Rxf5 {[%clk 0:01:48.2]} 24... h6 {[%clk 0:00:52.5]} 25. Bd5
{[%clk 0:01:45.5]} 25... Bg5 {[%clk 0:00:46]} 26. Qf2 {[%clk 0:01:36]} 26... Be3
{[%clk 0:00:34.5]} 27. Rxe3 {[%clk 0:01:35.8]} 27... dxe3 {[%clk 0:00:33.9]} 28.
Qxe3 {[%clk 0:01:36.7]} 28... Rf8 {[%clk 0:00:31.5]} 29. e6 {[%clk 0:01:24.1]}
29... Kh8 {[%clk 0:00:28.6]} 30. exf7 {[%clk 0:01:19.2]} 30... Qd7 {[%clk
0:00:26.2]} 31. Be6 {[%clk 0:01:08.5]} 31... Qe7 {[%clk 0:00:26.3]} 32. Rh5
{[%clk 0:01:02.3]} 32... Qf6 {[%clk 0:00:25.8]} 33. Bd5 {[%clk 0:00:52]} 33...
Re7 {[%clk 0:00:25.1]} 34. Qf2 {[%clk 0:00:51.6]} 34... Qa1+ {[%clk 0:00:24.5]}
35. Kg2 {[%clk 0:00:51.5]} 35... Re1 {[%clk 0:00:23.1]} 36. d4 {[%clk
0:00:34.1]} 36... Qd1 {[%clk 0:00:22.5]} 37. Rxh6+ {[%clk 0:00:33.8]} 37... gxh6
{[%clk 0:00:18.6]} 38. Qf6+ {[%clk 0:00:34.3]} 38... Kh7 {[%clk 0:00:18.4]} 39.
Qf5+ {[%clk 0:00:33.5]} 39... Kg7 {[%clk 0:00:17.4]} 40. h4 {[%clk 0:00:26.7]}
40... Qe2+ {[%clk 0:00:14.2]} 41. Kh3 {[%clk 0:00:27.2]} 41... Qf1+ {[%clk
0:00:13.7]} 42. Bg2 {[%clk 0:00:26.5]} 42... Qxf5+ {[%clk 0:00:13.2]} 0-1

[Event "Late-Titled-Tuesday-Blitz-February-20-2024"]
[Site "Chess.com"]
[Date "2024.02.20"]
[Round "2"]
[White "crescentmoon2411"]
[Black "akanga001"]
[Result "1-0"]
[WhiteElo "2987"]
[BlackElo "2021"]
[TimeControl "180+1"]
[EndTime "14:17:03 PST"]
[Termination "crescentmoon2411 won by checkmate"]

1. d4 {[%clk 0:02:31.7]} 1... d5 {[%clk 0:02:58.8]} 2. c4 {[%clk 0:02:31.1]}
2... e6 {[%clk 0:02:58.2]} 3. Nc3 {[%clk 0:02:31]} 3... Nf6 {[%clk 0:02:57.7]}
4. Nf3 {[%clk 0:02:26.6]} 4... a6 {[%clk 0:02:57.3]} 5. cxd5 {[%clk 0:02:22.4]}
5... exd5 {[%clk 0:02:56.8]} 6. Bg5 {[%clk 0:02:22.1]} 6... Be7 {[%clk
0:02:56.3]} 7. e3 {[%clk 0:02:16.1]} 7... c6 {[%clk 0:02:55.8]} 8. Bd3 {[%clk
0:02:08.4]} 8... O-O {[%clk 0:02:54.9]} 9. Qc2 {[%clk 0:02:07.8]} 9... Nbd7
{[%clk 0:02:53.5]} 10. O-O-O {[%clk 0:02:04.8]} 10... h6 {[%clk 0:02:52.7]} 11.
h4 {[%clk 0:02:04.2]} 11... Ne8 {[%clk 0:02:52.2]} 12. g4 {[%clk 0:02:03.4]}
12... Nd6 {[%clk 0:02:51]} 13. Bxe7 {[%clk 0:01:58.7]} 13... Qxe7 {[%clk
0:02:50.5]} 14. g5 {[%clk 0:01:59.5]} 14... h5 {[%clk 0:02:50.2]} 15. g6 {[%clk
0:01:53.5]} 15... f6 {[%clk 0:02:48.2]} 16. e4 {[%clk 0:01:48.1]} 16... Nb6
{[%clk 0:02:35.9]} 17. Rde1 {[%clk 0:01:29.7]} 17... Qd8 {[%clk 0:02:25.9]} 18.
e5 {[%clk 0:01:20.3]} 18... Ndc4 {[%clk 0:02:17.5]} 19. e6 {[%clk 0:01:07]}
19... Qd6 {[%clk 0:02:08.1]} 20. Qe2 {[%clk 0:01:04.5]} 20... Qb4 {[%clk
0:01:56.6]} 21. Nd1 {[%clk 0:00:53.7]} 21... Re8 {[%clk 0:01:53.3]} 22. Ng5
{[%clk 0:00:40.7]} 22... fxg5 {[%clk 0:01:32.8]} 23. a3 {[%clk 0:00:30.8]} 23...
Qd2+ {[%clk 0:01:32]} 24. Qxd2 {[%clk 0:00:30.6]} 24... Nxd2 {[%clk 0:01:31.4]}
25. Kxd2 {[%clk 0:00:31.5]} 25... Bxe6 {[%clk 0:01:25.3]} 26. hxg5 {[%clk
0:00:31.7]} 26... Bg4 {[%clk 0:01:24.4]} 27. Ne3 {[%clk 0:00:30]} 27... Bf3
{[%clk 0:01:18.6]} 28. Rh3 {[%clk 0:00:30.1]} 28... Rf8 {[%clk 0:01:12.4]} 29.
b3 {[%clk 0:00:29]} 29... Rae8 {[%clk 0:01:10.2]} 30. Bf5 {[%clk 0:00:28]} 30...
Be4 {[%clk 0:01:05.8]} 31. Bxe4 {[%clk 0:00:26.3]} 31... Rxe4 {[%clk 0:01:04.6]}
32. Rxh5 {[%clk 0:00:25.8]} 32... Rxd4+ {[%clk 0:01:03.1]} 33. Kc3 {[%clk
0:00:25.8]} 33... Rdf4 {[%clk 0:00:37.8]} 34. Reh1 {[%clk 0:00:25.7]} 34... d4+
{[%clk 0:00:31]} 35. Kd3 {[%clk 0:00:25.9]} 35... dxe3 {[%clk 0:00:05.1]} 36.
Rh8# {[%clk 0:00:24.7]} 1-0

[Event "Late-Titled-Tuesday-Blitz-February-20-2024"]
[Site "Chess.com"]
[Date "2024.02.20"]
[Round "2"]
[White "pr1105"]
[Black "azikom"]
[Result "0-1"]
[WhiteElo "2359"]
[BlackElo "2650"]
[TimeControl "180+1"]
[EndTime "14:17:05 PST"]
[Termination "azikom won on time"]

1. e4 {[%clk 0:03:00.9]} 1... c5 {[%clk 0:03:00]} 2. Nf3 {[%clk 0:03:01]} 2...
e6 {[%clk 0:03:00.9]} 3. d4 {[%clk 0:03:01.5]} 3... cxd4 {[%clk 0:03:01]} 4.
Nxd4 {[%clk 0:03:02.4]} 4... a6 {[%clk 0:03:01.6]} 5. c4 {[%clk 0:03:02.4]} 5...
g6 {[%clk 0:03:01]} 6. Nc3 {[%clk 0:03:00.1]} 6... Bg7 {[%clk 0:03:01]} 7. Be3
{[%clk 0:03:00]} 7... Ne7 {[%clk 0:03:01.3]} 8. Be2 {[%clk 0:02:56]} 8... O-O
{[%clk 0:03:01.1]} 9. O-O {[%clk 0:02:02.9]} 9... d5 {[%clk 0:03:00.8]} 10. cxd5
{[%clk 0:02:02.4]} 10... exd5 {[%clk 0:03:01.7]} 11. exd5 {[%clk 0:02:01.9]}
11... Nxd5 {[%clk 0:03:01.8]} 12. Nxd5 {[%clk 0:02:02]} 12... Qxd5 {[%clk
0:03:02.6]} 13. Bf3 {[%clk 0:02:02.7]} 13... Qa5 {[%clk 0:02:51.1]} 14. Qb3
{[%clk 0:01:49.3]} 14... Nd7 {[%clk 0:02:49.1]} 15. Rac1 {[%clk 0:01:37.5]}
15... Ne5 {[%clk 0:02:46.4]} 16. Bd5 {[%clk 0:01:33.8]} 16... Rd8 {[%clk
0:02:39.8]} 17. Be4 {[%clk 0:01:13.6]} 17... Ng4 {[%clk 0:02:37]} 18. Rfd1
{[%clk 0:00:57.2]} 18... Nxe3 {[%clk 0:02:31.1]} 19. Qxe3 {[%clk 0:00:49.6]}
19... Qxa2 {[%clk 0:02:10.3]} 20. Nf3 {[%clk 0:00:41.4]} 20... Be6 {[%clk
0:01:52.9]} 21. Bxb7 {[%clk 0:00:37.9]} 21... Rab8 {[%clk 0:01:42.8]} 22. Rxd8+
{[%clk 0:00:27.5]} 22... Rxd8 {[%clk 0:01:42.2]} 23. Qb6 {[%clk 0:00:28.4]}
23... Rb8 {[%clk 0:01:28.6]} 24. Qa7 {[%clk 0:00:21.7]} 24... Rd8 {[%clk
0:01:09.4]} 25. Qxa6 {[%clk 0:00:19.6]} 25... Qxb2 {[%clk 0:01:08.4]} 26. Qc6
{[%clk 0:00:15.1]} 26... Bh6 {[%clk 0:00:52.2]} 27. Rf1 {[%clk 0:00:13.1]} 27...
Bf4 {[%clk 0:00:37.8]} 28. Qe4 {[%clk 0:00:07.7]} 28... Bd6 {[%clk 0:00:32.1]}
29. g3 {[%clk 0:00:06.4]} 29... Bf5 {[%clk 0:00:30.7]} 30. Qc6 {[%clk
0:00:04.4]} 30... Bd3 {[%clk 0:00:20.7]} 31. Rd1 {[%clk 0:00:04.5]} 31... Be2
{[%clk 0:00:14.2]} 32. Rxd6 {[%clk 0:00:02.1]} 32... Rxd6 {[%clk 0:00:13.9]} 0-1

[Event "Late-Titled-Tuesday-Blitz-February-20-2024"]
[Site "Chess.com"]
[Date "2024.02.20"]
[Round "2"]
[White "STAYFlow"]
[Black "noblerone"]
[Result "1-0"]
[WhiteElo "2379"]
[BlackElo "2503"]
[TimeControl "180+1"]
[EndTime "14:17:05 PST"]
[Termination "STAYFlow won on time"]

1. e4 {[%clk 0:03:00.5]} 1... c5 {[%clk 0:02:58.9]} 2. Nf3 {[%clk 0:02:59.7]}
2... Nc6 {[%clk 0:02:58]} 3. d4 {[%clk 0:02:58.9]} 3... cxd4 {[%clk 0:02:58.9]}
4. Nxd4 {[%clk 0:02:59.4]} 4... Nf6 {[%clk 0:02:59.4]} 5. c4 {[%clk 0:02:51.8]}
5... Nxe4 {[%clk 0:02:41.7]} 6. Be3 {[%clk 0:02:47.8]} 6... Qa5+ {[%clk
0:02:33.9]} 7. Nd2 {[%clk 0:02:41.5]} 7... Nxd2 {[%clk 0:02:27.5]} 8. Bxd2
{[%clk 0:02:40.1]} 8... Qe5+ {[%clk 0:02:19.5]} 9. Ne2 {[%clk 0:02:40]} 9...
Qxb2 {[%clk 0:02:00.3]} 10. Bc3 {[%clk 0:02:37.7]} 10... Qa3 {[%clk 0:01:52.9]}
11. g3 {[%clk 0:02:19]} 11... e6 {[%clk 0:01:50]} 12. Bg2 {[%clk 0:02:10.9]}
12... Bb4 {[%clk 0:01:48.4]} 13. Rc1 {[%clk 0:01:37.3]} 13... O-O {[%clk
0:01:35.6]} 14. O-O {[%clk 0:01:35.2]} 14... Bxc3 {[%clk 0:01:34.2]} 15. Nxc3
{[%clk 0:01:31.3]} 15... a6 {[%clk 0:01:19.8]} 16. h4 {[%clk 0:01:20.4]} 16...
b6 {[%clk 0:01:00.4]} 17. h5 {[%clk 0:01:16.3]} 17... h6 {[%clk 0:00:58.7]} 18.
Re1 {[%clk 0:00:50.1]} 18... Rb8 {[%clk 0:00:40.2]} 19. Re3 {[%clk 0:00:45.7]}
19... Qe7 {[%clk 0:00:37]} 20. Nd5 {[%clk 0:00:34.2]} 20... Qg5 {[%clk
0:00:30.4]} 21. f4 {[%clk 0:00:25.7]} 21... Qd8 {[%clk 0:00:28.6]} 22. Nc3
{[%clk 0:00:18.9]} 22... Ne7 {[%clk 0:00:20.3]} 23. Rd3 {[%clk 0:00:17.9]} 23...
Qc7 {[%clk 0:00:14.6]} 24. Ne4 {[%clk 0:00:15.3]} 24... Nf5 {[%clk 0:00:13.2]}
25. Qf1 {[%clk 0:00:05.6]} 25... Bb7 {[%clk 0:00:10.9]} 26. g4 {[%clk
0:00:06.1]} 26... Bxe4 {[%clk 0:00:10]} 27. Bxe4 {[%clk 0:00:06]} 27... Ne7
{[%clk 0:00:06.4]} 28. Rg3 {[%clk 0:00:03.6]} 28... f5 {[%clk 0:00:04.5]} 29.
Bd3 {[%clk 0:00:02.8]} 29... Kh8 {[%clk 0:00:02.7]} 30. g5 {[%clk 0:00:02.9]}
1-0

[Event "Late-Titled-Tuesday-Blitz-February-20-2024"]
[Site "Chess.com"]
[Date "2024.02.20"]
[Round "2"]
[White "Oleksandr_Bortnyk"]
[Black "Titus369"]
[Result "1-0"]
[WhiteElo "3078"]
[BlackElo "2634"]
[TimeControl "180+1"]
[EndTime "14:17:07 PST"]
[Termination "Oleksandr_Bortnyk won by resignation"]

1. e4 {[%clk 0:03:00.9]} 1... c5 {[%clk 0:02:54.6]} 2. c3 {[%clk 0:03:01]} 2...
g6 {[%clk 0:02:53.3]} 3. d4 {[%clk 0:03:01.2]} 3... cxd4 {[%clk 0:02:53.5]} 4.
cxd4 {[%clk 0:03:02.1]} 4... d5 {[%clk 0:02:53.9]} 5. exd5 {[%clk 0:03:02.9]}
5... Nf6 {[%clk 0:02:54.4]} 6. Nc3 {[%clk 0:03:02]} 6... Nxd5 {[%clk 0:02:54]}
7. Bc4 {[%clk 0:03:02.4]} 7... Nb6 {[%clk 0:02:54]} 8. Bb3 {[%clk 0:03:02.2]}
8... Nc6 {[%clk 0:02:51.9]} 9. d5 {[%clk 0:03:00.9]} 9... Na5 {[%clk 0:02:49.6]}
10. Qd4 {[%clk 0:02:59.4]} 10... Nxb3 {[%clk 0:02:48.9]} 11. axb3 {[%clk
0:03:00.3]} 11... f6 {[%clk 0:02:45.5]} 12. h4 {[%clk 0:02:59.6]} 12... e5
{[%clk 0:02:33.5]} 13. Qd3 {[%clk 0:02:54.1]} 13... Bf5 {[%clk 0:02:31.1]} 14.
Qe2 {[%clk 0:02:54.3]} 14... a6 {[%clk 0:02:24.5]} 15. g4 {[%clk 0:02:53.3]}
15... Bd7 {[%clk 0:02:16.9]} 16. Qe4 {[%clk 0:02:53.6]} 16... Bg7 {[%clk
0:02:14.2]} 17. h5 {[%clk 0:02:53]} 17... f5 {[%clk 0:02:12.2]} 18. gxf5 {[%clk
0:02:51.7]} 18... Bxf5 {[%clk 0:02:10.3]} 19. Qg2 {[%clk 0:02:50.4]} 19... Rc8
{[%clk 0:02:00.4]} 20. Nge2 {[%clk 0:02:44.5]} 20... O-O {[%clk 0:01:52.6]} 21.
hxg6 {[%clk 0:02:44]} 21... Bxg6 {[%clk 0:01:50.7]} 22. Be3 {[%clk 0:02:42.2]}
22... Nd7 {[%clk 0:01:48.8]} 23. Ra4 {[%clk 0:02:36.5]} 23... e4 {[%clk
0:01:30.3]} 24. Nxe4 {[%clk 0:02:33.6]} 24... b5 {[%clk 0:01:29.9]} 25. Rxa6
{[%clk 0:02:31.3]} 25... Ne5 {[%clk 0:01:29.5]} 26. Ng5 {[%clk 0:02:27]} 26...
Ra8 {[%clk 0:01:18.4]} 27. Ne6 {[%clk 0:02:10]} 27... Nd3+ {[%clk 0:01:09.9]}
28. Kd2 {[%clk 0:01:38.7]} 28... Qe7 {[%clk 0:00:45.3]} 29. Rxa8 {[%clk
0:01:38.6]} 29... Rxa8 {[%clk 0:00:43.9]} 30. Nxg7 {[%clk 0:01:36]} 30... Qxg7
{[%clk 0:00:39.5]} 31. Bd4 {[%clk 0:01:32.5]} 31... Qf7 {[%clk 0:00:36.1]} 32.
Qg5 {[%clk 0:01:16.5]} 32... Rc8 {[%clk 0:00:31.5]} 33. f4 {[%clk 0:01:06.8]}
33... Nb4 {[%clk 0:00:21.4]} 34. Nc3 {[%clk 0:01:01.7]} 34... Nd3 {[%clk
0:00:18.6]} 35. f5 {[%clk 0:00:50.9]} 35... Qxf5 {[%clk 0:00:18.1]} 36. Qxf5
{[%clk 0:00:51.2]} 36... Bxf5 {[%clk 0:00:19]} 37. Nxb5 {[%clk 0:00:51.9]} 37...
Nf4 {[%clk 0:00:17.5]} 38. Nc3 {[%clk 0:00:43.2]} 38... Bg6 {[%clk 0:00:14.1]}
39. Rf1 {[%clk 0:00:36.8]} 39... Nh5 {[%clk 0:00:08.4]} 40. d6 {[%clk
0:00:36.2]} 40... Rd8 {[%clk 0:00:08.5]} 41. Be5 {[%clk 0:00:36.4]} 41... Bf7
{[%clk 0:00:07.3]} 42. b4 {[%clk 0:00:30]} 42... Rb8 {[%clk 0:00:07.1]} 43. Ne4
{[%clk 0:00:26.7]} 43... Rxb4 {[%clk 0:00:06.3]} 44. d7 {[%clk 0:00:27.2]} 44...
Rb5 {[%clk 0:00:02.5]} 45. d8=Q+ {[%clk 0:00:27]} 1-0

[Event "Late-Titled-Tuesday-Blitz-February-20-2024"]
[Site "Chess.com"]
[Date "2024.02.20"]
[Round "2"]
[White "Tunahan_Makaraci"]
[Black "Kiborg95"]
[Result "0-1"]
[WhiteElo "2520"]
[BlackElo "2821"]
[TimeControl "180+1"]
[EndTime "14:17:07 PST"]
[Termination "Kiborg95 won on time"]

1. e4 {[%clk 0:02:55.8]} 1... d6 {[%clk 0:03:00.1]} 2. d4 {[%clk 0:02:54.7]}
2... Nf6 {[%clk 0:03:00.8]} 3. Nc3 {[%clk 0:02:55.2]} 3... e5 {[%clk 0:03:01.4]}
4. Nge2 {[%clk 0:02:54.5]} 4... c6 {[%clk 0:03:01.2]} 5. a4 {[%clk 0:02:52.9]}
5... Be7 {[%clk 0:03:00.6]} 6. h3 {[%clk 0:02:52.8]} 6... h5 {[%clk 0:03:00.6]}
7. Bg5 {[%clk 0:02:51.4]} 7... Nbd7 {[%clk 0:03:00.8]} 8. g3 {[%clk 0:02:48]}
8... b6 {[%clk 0:02:59.5]} 9. Bg2 {[%clk 0:02:37]} 9... a6 {[%clk 0:02:59.8]}
10. O-O {[%clk 0:02:35.3]} 10... Bb7 {[%clk 0:03:00.5]} 11. f4 {[%clk
0:02:34.1]} 11... O-O {[%clk 0:03:00.9]} 12. Kh2 {[%clk 0:02:14.9]} 12... Re8
{[%clk 0:03:01.1]} 13. Kh1 {[%clk 0:01:56.7]} 13... b5 {[%clk 0:03:00.8]} 14.
axb5 {[%clk 0:01:56.5]} 14... axb5 {[%clk 0:03:01.3]} 15. Rxa8 {[%clk 0:01:57]}
15... Qxa8 {[%clk 0:03:01.2]} 16. dxe5 {[%clk 0:01:45.4]} 16... dxe5 {[%clk
0:03:01.5]} 17. fxe5 {[%clk 0:01:45]} 17... Nxe5 {[%clk 0:02:59.3]} 18. Nf4
{[%clk 0:01:42.3]} 18... b4 {[%clk 0:02:48.2]} 19. Nb1 {[%clk 0:01:36.3]} 19...
Rd8 {[%clk 0:02:35.5]} 20. Qe1 {[%clk 0:01:25.5]} 20... Qa1 {[%clk 0:01:53.5]}
21. Bxf6 {[%clk 0:01:21.2]} 21... Bxf6 {[%clk 0:01:54.1]} 22. Nxh5 {[%clk
0:01:20.6]} 22... Bg5 {[%clk 0:01:54.9]} 23. Qxb4 {[%clk 0:01:12.3]} 23... Ba6
{[%clk 0:01:55.4]} 24. Re1 {[%clk 0:00:58.7]} 24... Bd2 {[%clk 0:01:54.1]} 25.
Qe7 {[%clk 0:00:52.6]} 25... Bxe1 {[%clk 0:01:13.3]} 26. Qxd8+ {[%clk
0:00:49.5]} 26... Kh7 {[%clk 0:01:13.2]} 27. Qd1 {[%clk 0:00:19.6]} 27... Bf2
{[%clk 0:01:13.3]} 28. Nc3 {[%clk 0:00:19.2]} 28... Qxb2 {[%clk 0:01:12.2]} 29.
Ne2 {[%clk 0:00:17.4]} 29... Nc4 {[%clk 0:01:04.2]} 30. Nhf4 {[%clk 0:00:08]}
30... Ne3 {[%clk 0:00:58.9]} 31. Qc1 {[%clk 0:00:06.4]} 31... Qxc1+ {[%clk
0:00:56.2]} 32. Nxc1 {[%clk 0:00:06.8]} 32... Bxg3 {[%clk 0:00:56.9]} 33. Nfe2
{[%clk 0:00:06.5]} 33... Be5 {[%clk 0:00:54.4]} 34. Nd3 {[%clk 0:00:06.6]} 34...
Bc7 {[%clk 0:00:43.4]} 35. Nd4 {[%clk 0:00:06.6]} 35... Nxc2 {[%clk 0:00:41.2]}
36. Nc5 {[%clk 0:00:04.9]} 36... Nxd4 {[%clk 0:00:36.7]} 37. Nxa6 {[%clk
0:00:05.3]} 37... Bd6 {[%clk 0:00:37.2]} 38. Kg1 {[%clk 0:00:04.6]} 38... Kg6
{[%clk 0:00:35.2]} 39. Kf2 {[%clk 0:00:04]} 39... Kf6 {[%clk 0:00:35.8]} 40. Ke3
{[%clk 0:00:04.3]} 40... Ke5 {[%clk 0:00:36.5]} 41. Kd3 {[%clk 0:00:04.5]} 41...
Ne6 {[%clk 0:00:31.7]} 42. Kc4 {[%clk 0:00:04.5]} 42... Nf4 {[%clk 0:00:31.9]}
43. Bf3 {[%clk 0:00:02.5]} 43... Nxh3 {[%clk 0:00:32]} 0-1

[Event "Late-Titled-Tuesday-Blitz-February-20-2024"]
[Site "Chess.com"]
[Date "2024.02.20"]
[Round "2"]
[White "kleopl"]
[Black "micke12a"]
[Result "0-1"]
[WhiteElo "2504"]
[BlackElo "2346"]
[TimeControl "180+1"]
[EndTime "14:17:07 PST"]
[Termination "micke12a won by resignation"]

1. e4 {[%clk 0:03:00.9]} 1... c5 {[%clk 0:02:55.7]} 2. Nc3 {[%clk 0:03:00]} 2...
g6 {[%clk 0:02:54.4]} 3. f4 {[%clk 0:02:55.9]} 3... Nc6 {[%clk 0:02:53.3]} 4.
Bb5 {[%clk 0:02:55.2]} 4... Nd4 {[%clk 0:02:52.7]} 5. Bc4 {[%clk 0:02:55.4]}
5... a6 {[%clk 0:02:52.6]} 6. Nf3 {[%clk 0:02:53.9]} 6... Bg7 {[%clk 0:02:52.3]}
7. Nxd4 {[%clk 0:02:53.1]} 7... cxd4 {[%clk 0:02:51]} 8. Ne2 {[%clk 0:02:53.6]}
8... e6 {[%clk 0:02:45.4]} 9. d3 {[%clk 0:02:51.7]} 9... b5 {[%clk 0:02:45.3]}
10. Bb3 {[%clk 0:02:51.1]} 10... Bb7 {[%clk 0:02:45.9]} 11. O-O {[%clk
0:02:50.8]} 11... Ne7 {[%clk 0:02:44.5]} 12. a4 {[%clk 0:02:45.7]} 12... O-O
{[%clk 0:02:42.5]} 13. Qe1 {[%clk 0:02:44.7]} 13... Nc6 {[%clk 0:02:38.4]} 14.
Bd2 {[%clk 0:02:43.5]} 14... Qb6 {[%clk 0:02:31]} 15. Kh1 {[%clk 0:02:41]} 15...
Kh8 {[%clk 0:02:28.5]} 16. Qh4 {[%clk 0:02:35.9]} 16... Na5 {[%clk 0:02:27]} 17.
Bxa5 {[%clk 0:02:30.5]} 17... Qxa5 {[%clk 0:02:26.3]} 18. axb5 {[%clk
0:02:30.6]} 18... Qxb5 {[%clk 0:02:26.4]} 19. Ba4 {[%clk 0:02:20]} 19... Qb4
{[%clk 0:02:06.5]} 20. c3 {[%clk 0:01:56.3]} 20... Qxb2 {[%clk 0:02:00.8]} 21.
Qf2 {[%clk 0:01:40.3]} 21... Qd2 {[%clk 0:01:45.8]} 22. Rad1 {[%clk 0:01:20.8]}
22... Qa2 {[%clk 0:01:28.2]} 23. Ra1 {[%clk 0:01:20.1]} 23... Qd2 {[%clk
0:01:24.9]} 24. Rad1 {[%clk 0:01:05.8]} 24... Qe3 {[%clk 0:01:20]} 25. Nxd4
{[%clk 0:00:56.4]} 25... Qxf2 {[%clk 0:01:14.5]} 26. Rxf2 {[%clk 0:00:56.4]}
26... Bxd4 {[%clk 0:01:12.7]} 27. cxd4 {[%clk 0:00:55.9]} 27... d5 {[%clk
0:01:13.3]} 28. e5 {[%clk 0:00:53.2]} 28... Rfc8 {[%clk 0:01:10.2]} 29. Rb2
{[%clk 0:00:42.5]} 29... Bc6 {[%clk 0:01:08.9]} 30. Bxc6 {[%clk 0:00:37.9]}
30... Rxc6 {[%clk 0:01:09.8]} 31. Ra2 {[%clk 0:00:25.3]} 31... Rc3 {[%clk
0:01:03.8]} 32. Kg1 {[%clk 0:00:24.8]} 32... Rb3 {[%clk 0:01:03.3]} 33. Kf2
{[%clk 0:00:23.5]} 33... a5 {[%clk 0:01:01.4]} 34. Ke3 {[%clk 0:00:20.4]} 34...
a4 {[%clk 0:01:01.7]} 35. Rda1 {[%clk 0:00:19.9]} 35... a3 {[%clk 0:01:02.1]}
36. g3 {[%clk 0:00:19.7]} 36... h5 {[%clk 0:01:01.3]} 37. h3 {[%clk 0:00:19.3]}
37... Kg7 {[%clk 0:00:56.5]} 38. g4 {[%clk 0:00:19.4]} 38... hxg4 {[%clk
0:00:56.8]} 39. hxg4 {[%clk 0:00:20.3]} 39... Kf8 {[%clk 0:00:57.2]} 40. Rh1
{[%clk 0:00:17.3]} 40... Ke7 {[%clk 0:00:56]} 41. Rha1 {[%clk 0:00:14.7]} 41...
Ra4 {[%clk 0:00:52.4]} 42. Rc1 {[%clk 0:00:12.3]} 42... Rbb4 {[%clk 0:00:47.7]}
43. Rc7+ {[%clk 0:00:10.7]} 43... Kf8 {[%clk 0:00:45.4]} 44. f5 {[%clk
0:00:08.3]} 44... gxf5 {[%clk 0:00:37.9]} 45. gxf5 {[%clk 0:00:09.2]} 45... exf5
{[%clk 0:00:38.3]} 46. Rd7 {[%clk 0:00:05.9]} 46... Rxd4 {[%clk 0:00:37.4]} 47.
Rxd5 {[%clk 0:00:05.9]} 47... Rxd5 {[%clk 0:00:36.7]} 0-1